[Event "*** SCC Grand Prix: Titled Tuesday Blitz"]
[Site "Chess.com"]
[Date "2020.07.07"]
[Round "6"]
[White "SARGISMV"]
[Black "MiroVlasenko"]
[Result "1-0"]
[WhiteElo "2492"]
[BlackElo "2616"]
[TimeControl "180+1"]
[EndTime "11:07:07 PDT"]
[Termination "SARGISMV won by resignation"]

1. Nf3 {[%clk 0:03:00.9]} 1... Nf6 {[%clk 0:02:58.1]} 2. c4 {[%clk 0:03:01.8]}
2... e6 {[%clk 0:02:58.1]} 3. Nc3 {[%clk 0:03:02.7]} 3... Bb4 {[%clk 0:02:56.8]}
4. d4 {[%clk 0:02:53.9]} 4... b6 {[%clk 0:02:53.6]} 5. Bd2 {[%clk 0:02:53.2]}
5... Bb7 {[%clk 0:02:52.6]} 6. e3 {[%clk 0:02:53.5]} 6... O-O {[%clk 0:02:51.1]}
7. Bd3 {[%clk 0:02:52.2]} 7... d6 {[%clk 0:02:50.2]} 8. O-O {[%clk 0:02:51.9]}
8... Nbd7 {[%clk 0:02:49.4]} 9. Qc2 {[%clk 0:02:50.4]} 9... Qe7 {[%clk
0:02:44.6]} 10. e4 {[%clk 0:02:48.8]} 10... Bxc3 {[%clk 0:02:36.3]} 11. Bxc3
{[%clk 0:02:48.2]} 11... e5 {[%clk 0:02:36.7]} 12. d5 {[%clk 0:02:45.4]} 12...
a5 {[%clk 0:02:34.4]} 13. Rfe1 {[%clk 0:02:40.7]} 13... Nh5 {[%clk 0:02:32]} 14.
b3 {[%clk 0:02:32]} 14... Nc5 {[%clk 0:02:22.6]} 15. Bf1 {[%clk 0:02:31.4]}
15... Bc8 {[%clk 0:02:20.2]} 16. a3 {[%clk 0:02:21.3]} 16... a4 {[%clk
0:02:14.3]} 17. b4 {[%clk 0:02:20.9]} 17... Nb3 {[%clk 0:02:14.3]} 18. Rad1
{[%clk 0:02:05.3]} 18... f5 {[%clk 0:02:10]} 19. Nd2 {[%clk 0:01:46.6]} 19...
Nxd2 {[%clk 0:02:07.1]} 20. Rxd2 {[%clk 0:01:47.5]} 20... f4 {[%clk 0:02:02.4]}
21. c5 {[%clk 0:01:45]} 21... g5 {[%clk 0:01:58.9]} 22. cxd6 {[%clk 0:01:40.1]}
22... cxd6 {[%clk 0:01:58]} 23. b5 {[%clk 0:01:39.9]} 23... Bd7 {[%clk
0:01:47.8]} 24. Bb4 {[%clk 0:01:39.8]} 24... Rfc8 {[%clk 0:01:46.9]} 25. Qd1
{[%clk 0:01:34.1]} 25... Nf6 {[%clk 0:01:45.4]} 26. Rc2 {[%clk 0:01:30]} 26...
g4 {[%clk 0:01:42.5]} 27. Rxc8+ {[%clk 0:01:29.2]} 27... Bxc8 {[%clk 0:01:37.4]}
28. Qc2 {[%clk 0:01:27.6]} 28... Bb7 {[%clk 0:01:29.9]} 29. Rc1 {[%clk
0:01:13.3]} 29... Ne8 {[%clk 0:01:29.3]} 30. g3 {[%clk 0:00:54.9]} 30... f3
{[%clk 0:01:10.4]} 31. Qd2 {[%clk 0:00:53.3]} 31... Kg7 {[%clk 0:01:06.5]} 32.
h4 {[%clk 0:00:44.6]} 32... Rc8 {[%clk 0:00:24.6]} 33. Rxc8 {[%clk 0:00:40.2]}
33... Bxc8 {[%clk 0:00:24.9]} 34. Qe3 {[%clk 0:00:41.1]} 34... Qc7 {[%clk
0:00:22.8]} 35. Bd2 {[%clk 0:00:40.5]} 35... Kg8 {[%clk 0:00:20.2]} 36. Qg5+
{[%clk 0:00:39.6]} 36... Ng7 {[%clk 0:00:20.5]} 37. h5 {[%clk 0:00:39.2]} 37...
Kf7 {[%clk 0:00:19.9]} 38. h6 {[%clk 0:00:37.5]} 38... Ne8 {[%clk 0:00:20.1]}
39. Qh5+ {[%clk 0:00:37.2]} 39... Kf8 {[%clk 0:00:20]} 40. Qg5 {[%clk
0:00:29.8]} 40... Bd7 {[%clk 0:00:19.3]} 41. Bb4 {[%clk 0:00:20.8]} 41... Qc2
{[%clk 0:00:17.3]} 42. Bxd6+ {[%clk 0:00:12.4]} 42... Nxd6 {[%clk 0:00:16.7]}
43. Qd8+ {[%clk 0:00:12.4]} 43... Ne8 {[%clk 0:00:17]} 44. Qxd7 {[%clk
0:00:12.4]} 44... Qxe4 {[%clk 0:00:17.3]} 45. Qe6 {[%clk 0:00:08.9]} 45... Qg6
{[%clk 0:00:16.5]} 46. Qxe5 {[%clk 0:00:07.9]} 46... Qf6 {[%clk 0:00:16.9]} 47.
Qe3 {[%clk 0:00:06.6]} 47... Nd6 {[%clk 0:00:16.3]} 48. Qxb6 {[%clk 0:00:06.1]}
48... Qxh6 {[%clk 0:00:16.5]} 49. Qd8+ {[%clk 0:00:05.7]} 49... Ne8 {[%clk
0:00:16.5]} 50. b6 {[%clk 0:00:05.8]} 50... Qd6 {[%clk 0:00:16.8]} 51. Qxd6+
{[%clk 0:00:05.1]} 51... Nxd6 {[%clk 0:00:17.2]} 52. Ba6 {[%clk 0:00:05.8]}
52... Ke7 {[%clk 0:00:16.1]} 53. b7 {[%clk 0:00:06.1]} 1-0

[Event "*** SCC Grand Prix: Titled Tuesday Blitz"]
[Site "Chess.com"]
[Date "2020.07.07"]
[Round "6"]
[White "karinachess1"]
[Black "abykhovsky"]
[Result "0-1"]
[WhiteElo "2498"]
[BlackElo "2683"]
[TimeControl "180+1"]
[EndTime "11:07:08 PDT"]
[Termination "abykhovsky won by resignation"]

1. c4 {[%clk 0:03:00.9]} 1... e5 {[%clk 0:02:59.2]} 2. Nc3 {[%clk 0:03:00.2]}
2... Nf6 {[%clk 0:02:58.9]} 3. Nf3 {[%clk 0:02:59.4]} 3... Nc6 {[%clk
0:02:58.5]} 4. a3 {[%clk 0:02:59.8]} 4... g6 {[%clk 0:02:57.2]} 5. g3 {[%clk
0:02:57]} 5... Bg7 {[%clk 0:02:56.7]} 6. Bg2 {[%clk 0:02:57.5]} 6... O-O {[%clk
0:02:56.3]} 7. O-O {[%clk 0:02:55]} 7... Re8 {[%clk 0:02:55.7]} 8. d3 {[%clk
0:02:55.2]} 8... h6 {[%clk 0:02:53.6]} 9. Rb1 {[%clk 0:02:50.7]} 9... d6 {[%clk
0:02:48.4]} 10. b4 {[%clk 0:02:47.1]} 10... Bf5 {[%clk 0:02:47.3]} 11. b5 {[%clk
0:02:41.9]} 11... Nd4 {[%clk 0:02:44.5]} 12. Re1 {[%clk 0:02:22.3]} 12... Qd7
{[%clk 0:02:40]} 13. a4 {[%clk 0:02:07.1]} 13... Nxf3+ {[%clk 0:02:29.1]} 14.
Bxf3 {[%clk 0:01:48.5]} 14... e4 {[%clk 0:02:28.1]} 15. dxe4 {[%clk 0:01:43]}
15... Nxe4 {[%clk 0:02:27]} 16. Nxe4 {[%clk 0:01:43.1]} 16... Bxe4 {[%clk
0:02:27.9]} 17. Rb3 {[%clk 0:01:41.6]} 17... Qf5 {[%clk 0:02:24]} 18. Re3 {[%clk
0:01:21.6]} 18... Bxf3 {[%clk 0:02:17.3]} 19. Rxf3 {[%clk 0:01:20]} 19... Qe4
{[%clk 0:02:17.1]} 20. Qd3 {[%clk 0:01:16.1]} 20... Qxd3 {[%clk 0:02:16]} 21.
Rxd3 {[%clk 0:01:17]} 21... Re4 {[%clk 0:02:15.9]} 22. c5 {[%clk 0:01:13.7]}
22... dxc5 {[%clk 0:02:14.6]} 23. Rd7 {[%clk 0:01:13.4]} 23... Rxa4 {[%clk
0:01:54.5]} 24. Rxc7 {[%clk 0:01:12.5]} 24... b6 {[%clk 0:01:54.5]} 25. Bf4
{[%clk 0:01:09.3]} 25... g5 {[%clk 0:01:46.6]} 26. Be3 {[%clk 0:01:01.6]} 26...
Rd8 {[%clk 0:01:37.1]} 27. Kg2 {[%clk 0:00:56.7]} 27... Ra5 {[%clk 0:01:29.4]}
28. Rb1 {[%clk 0:00:54.7]} 28... Ra2 {[%clk 0:01:11.7]} 29. Kf3 {[%clk 0:00:51]}
29... Rd6 {[%clk 0:01:08.8]} 30. Re1 {[%clk 0:00:38.9]} 30... Bd4 {[%clk
0:00:51.9]} 31. Bxd4 {[%clk 0:00:34.9]} 31... Rxd4 {[%clk 0:00:52.8]} 32. Rb1
{[%clk 0:00:29.5]} 32... Rdd2 {[%clk 0:00:45.6]} 33. Re1 {[%clk 0:00:19]} 33...
Kg7 {[%clk 0:00:36.2]} 34. h4 {[%clk 0:00:18.5]} 34... Rd4 {[%clk 0:00:30.8]}
35. hxg5 {[%clk 0:00:17.8]} 35... hxg5 {[%clk 0:00:30.1]} 36. g4 {[%clk
0:00:17.5]} 36... Raa4 {[%clk 0:00:28.1]} 37. Rg1 {[%clk 0:00:15.6]} 37... Rf4+
{[%clk 0:00:27.3]} 38. Ke3 {[%clk 0:00:16.1]} 38... Ra3+ {[%clk 0:00:24.7]} 39.
Kd2 {[%clk 0:00:15.5]} 39... Rxf2 {[%clk 0:00:24.3]} 40. Rc1 {[%clk 0:00:12.8]}
40... Ra2+ {[%clk 0:00:22.9]} 41. Ke3 {[%clk 0:00:11.8]} 41... Raxe2+ {[%clk
0:00:22.2]} 42. Kd3 {[%clk 0:00:12.2]} 42... Ra2 {[%clk 0:00:21.3]} 43. Kc4
{[%clk 0:00:11.7]} 43... Rfd2 {[%clk 0:00:20.1]} 44. Rf1 {[%clk 0:00:10.9]}
44... Rf2 {[%clk 0:00:16.8]} 45. Rxf2 {[%clk 0:00:11.1]} 45... Rxf2 {[%clk
0:00:16.7]} 46. Rxa7 {[%clk 0:00:12]} 46... Rd2 {[%clk 0:00:15.9]} 47. Rb7
{[%clk 0:00:11.1]} 47... Rd4+ {[%clk 0:00:15.6]} 48. Kc3 {[%clk 0:00:10.8]}
48... Rxg4 {[%clk 0:00:15.8]} 49. Rxb6 {[%clk 0:00:10.8]} 49... Rb4 {[%clk
0:00:16.3]} 50. Rb8 {[%clk 0:00:09.9]} 50... g4 {[%clk 0:00:16.4]} 51. b6 {[%clk
0:00:07]} 51... g3 {[%clk 0:00:15.5]} 52. Rc8 {[%clk 0:00:06.4]} 52... Rxb6
{[%clk 0:00:14.6]} 53. Rxc5 {[%clk 0:00:07.3]} 53... g2 {[%clk 0:00:14.9]} 54.
Rg5+ {[%clk 0:00:07.3]} 54... Rg6 {[%clk 0:00:14.3]} 0-1

[Event "*** SCC Grand Prix: Titled Tuesday Blitz"]
[Site "Chess.com"]
[Date "2020.07.07"]
[Round "6"]
[White "talman67"]
[Black "fmshawnrl123"]
[Result "0-1"]
[WhiteElo "2486"]
[BlackElo "2649"]
[TimeControl "180+1"]
[EndTime "11:07:09 PDT"]
[Termination "fmshawnrl123 won on time"]

1. e4 {[%clk 0:02:59.2]} 1... c6 {[%clk 0:03:00.1]} 2. d4 {[%clk 0:02:58.9]}
2... d5 {[%clk 0:03:01]} 3. e5 {[%clk 0:02:59.4]} 3... Bf5 {[%clk 0:03:00.5]} 4.
Nf3 {[%clk 0:02:59.9]} 4... e6 {[%clk 0:03:00.7]} 5. Be2 {[%clk 0:03:00.3]} 5...
Bb4+ {[%clk 0:02:59.9]} 6. c3 {[%clk 0:02:59.4]} 6... Ba5 {[%clk 0:03:00.8]} 7.
Qb3 {[%clk 0:02:59.3]} 7... Qb6 {[%clk 0:03:00]} 8. Nh4 {[%clk 0:02:55.7]} 8...
Bxb1 {[%clk 0:02:58.9]} 9. Rxb1 {[%clk 0:02:55.1]} 9... Qxb3 {[%clk 0:02:59.4]}
10. axb3 {[%clk 0:02:56]} 10... Nd7 {[%clk 0:03:00]} 11. f4 {[%clk 0:02:52.9]}
11... Ne7 {[%clk 0:02:59.4]} 12. Bd3 {[%clk 0:02:52.4]} 12... Ng6 {[%clk
0:02:58.7]} 13. b4 {[%clk 0:02:52.1]} 13... Nxh4 {[%clk 0:02:53.3]} 14. bxa5
{[%clk 0:02:51.4]} 14... Nxg2+ {[%clk 0:02:53.2]} 15. Kf2 {[%clk 0:02:51.7]}
15... Nh4 {[%clk 0:02:48.1]} 16. Kg3 {[%clk 0:02:52.6]} 16... Ng6 {[%clk
0:02:46.9]} 17. h4 {[%clk 0:02:53.4]} 17... a6 {[%clk 0:02:45]} 18. h5 {[%clk
0:02:51.7]} 18... Ne7 {[%clk 0:02:45.2]} 19. b4 {[%clk 0:02:46]} 19... O-O-O
{[%clk 0:02:44.1]} 20. Kg4 {[%clk 0:02:40.8]} 20... Kc7 {[%clk 0:02:42.2]} 21.
Bd2 {[%clk 0:02:40]} 21... f5+ {[%clk 0:02:35.2]} 22. Kf3 {[%clk 0:02:36.1]}
22... Rdg8 {[%clk 0:02:33.8]} 23. Be1 {[%clk 0:02:33.3]} 23... Kd8 {[%clk
0:02:18.8]} 24. Bh4 {[%clk 0:02:33]} 24... Ke8 {[%clk 0:02:19.2]} 25. Rbg1
{[%clk 0:02:26.6]} 25... h6 {[%clk 0:02:18.3]} 26. c4 {[%clk 0:02:04]} 26...
dxc4 {[%clk 0:02:10]} 27. Bxc4 {[%clk 0:02:04.9]} 27... Nf8 {[%clk 0:02:10.5]}
28. Rg2 {[%clk 0:01:43.6]} 28... Nd5 {[%clk 0:02:09]} 29. Bxd5 {[%clk
0:01:39.1]} 29... exd5 {[%clk 0:02:08.8]} 30. Rhg1 {[%clk 0:01:36]} 30... Kf7
{[%clk 0:02:08.6]} 31. Rg6 {[%clk 0:01:22.9]} 31... Nxg6 {[%clk 0:02:03.1]} 32.
Rxg6 {[%clk 0:01:23.8]} 32... Rb8 {[%clk 0:01:34.6]} 33. e6+ {[%clk 0:01:22.4]}
33... Kg8 {[%clk 0:01:31.6]} 34. Bf6 {[%clk 0:01:08]} 34... Rh7 {[%clk
0:01:30.8]} 35. Be5 {[%clk 0:01:08.4]} 35... Re8 {[%clk 0:01:29]} 36. Ke3 {[%clk
0:01:06.7]} 36... Kf8 {[%clk 0:00:50.6]} 37. Bd6+ {[%clk 0:01:06.4]} 37... Kg8
{[%clk 0:00:50.9]} 38. Kd3 {[%clk 0:01:06.8]} 38... Rh8 {[%clk 0:00:40.6]} 39.
Kc3 {[%clk 0:01:01.2]} 39... Kh7 {[%clk 0:00:39.2]} 40. e7 {[%clk 0:00:51.6]}
40... Kg8 {[%clk 0:00:29.4]} 41. b5 {[%clk 0:00:40.3]} 41... axb5 {[%clk
0:00:30.3]} 42. Kb4 {[%clk 0:00:40.7]} 42... Kf7 {[%clk 0:00:30.2]} 43. Kc5
{[%clk 0:00:39.9]} 43... Ra8 {[%clk 0:00:24.7]} 44. Kb6 {[%clk 0:00:10.9]} 44...
Ra6+ {[%clk 0:00:17]} 45. Kc7 {[%clk 0:00:08.1]} 45... Rxa5 {[%clk 0:00:17.9]}
46. Kd7 {[%clk 0:00:08.3]} 46... b6 {[%clk 0:00:14.5]} 47. Be5 {[%clk
0:00:03.9]} 47... Ra7+ {[%clk 0:00:11.8]} 48. Kd6 {[%clk 0:00:04]} 48... Rg8
{[%clk 0:00:09.3]} 49. Bxg7 {[%clk 0:00:01.3]} 49... Rxe7 {[%clk 0:00:07.6]} 0-1

[Event "*** SCC Grand Prix: Titled Tuesday Blitz"]
[Site "Chess.com"]
[Date "2020.07.07"]
[Round "6"]
[White "davidkalashian"]
[Black "elohunter1999"]
[Result "0-1"]
[WhiteElo "2600"]
[BlackElo "2456"]
[TimeControl "180+1"]
[EndTime "11:07:10 PDT"]
[Termination "elohunter1999 won by resignation"]

1. e4 {[%clk 0:03:00.9]} 1... e5 {[%clk 0:02:53.7]} 2. Nf3 {[%clk 0:03:00.3]}
2... Nc6 {[%clk 0:02:54.2]} 3. d4 {[%clk 0:02:55.7]} 3... exd4 {[%clk
0:02:54.1]} 4. Nxd4 {[%clk 0:02:56.6]} 4... Nf6 {[%clk 0:02:54]} 5. Nc3 {[%clk
0:02:55.8]} 5... Bb4 {[%clk 0:02:52.7]} 6. Nxc6 {[%clk 0:02:54.8]} 6... bxc6
{[%clk 0:02:53]} 7. Bd3 {[%clk 0:02:54.8]} 7... d5 {[%clk 0:02:53.1]} 8. exd5
{[%clk 0:02:54.4]} 8... O-O {[%clk 0:02:53.4]} 9. O-O {[%clk 0:02:54.1]} 9...
cxd5 {[%clk 0:02:53.5]} 10. Bg5 {[%clk 0:02:53]} 10... c6 {[%clk 0:02:53]} 11.
Qf3 {[%clk 0:02:49.7]} 11... Rb8 {[%clk 0:02:49.2]} 12. Rab1 {[%clk 0:02:46.7]}
12... Bd6 {[%clk 0:02:48.9]} 13. Rfe1 {[%clk 0:02:41.1]} 13... h6 {[%clk
0:02:41.1]} 14. Bxf6 {[%clk 0:02:39.4]} 14... Qxf6 {[%clk 0:02:42]} 15. Qxf6
{[%clk 0:02:39.6]} 15... gxf6 {[%clk 0:02:42.9]} 16. Ne2 {[%clk 0:02:36.8]}
16... Re8 {[%clk 0:02:35.7]} 17. g3 {[%clk 0:02:18.8]} 17... Bg4 {[%clk
0:02:31.4]} 18. Kg2 {[%clk 0:02:14.6]} 18... Bxe2 {[%clk 0:02:26.7]} 19. Rxe2
{[%clk 0:02:11.2]} 19... Rxe2 {[%clk 0:02:26.4]} 20. Bxe2 {[%clk 0:02:12.1]}
20... Be5 {[%clk 0:02:27.3]} 21. b3 {[%clk 0:02:11.2]} 21... Bc3 {[%clk
0:02:27.4]} 22. Rd1 {[%clk 0:02:07.5]} 22... Re8 {[%clk 0:02:24.3]} 23. Ba6
{[%clk 0:02:04.8]} 23... d4 {[%clk 0:02:20.2]} 24. Kf3 {[%clk 0:02:02.2]} 24...
c5 {[%clk 0:02:18]} 25. a4 {[%clk 0:02:00.9]} 25... Kg7 {[%clk 0:02:14.8]} 26.
h4 {[%clk 0:01:57.2]} 26... f5 {[%clk 0:01:53]} 27. Bb5 {[%clk 0:01:55.9]} 27...
Re5 {[%clk 0:01:50.3]} 28. Bc4 {[%clk 0:01:35]} 28... Kf6 {[%clk 0:01:49.6]} 29.
Bd3 {[%clk 0:01:34.8]} 29... a5 {[%clk 0:01:48]} 30. Bc4 {[%clk 0:01:34.4]}
30... Re7 {[%clk 0:01:39.2]} 31. Bd3 {[%clk 0:01:33.6]} 31... Re5 {[%clk
0:01:38.7]} 32. Kf4 {[%clk 0:01:29.7]} 32... Re1 {[%clk 0:01:35.3]} 33. Rxe1
{[%clk 0:01:28.9]} 33... Bxe1 {[%clk 0:01:35.4]} 34. Kf3 {[%clk 0:01:25.9]}
34... Ke5 {[%clk 0:01:35]} 35. Ke2 {[%clk 0:01:24.6]} 35... Bc3 {[%clk
0:01:34.3]} 36. f3 {[%clk 0:01:22.9]} 36... f4 {[%clk 0:01:20.3]} 37. g4 {[%clk
0:01:20.8]} 37... f6 {[%clk 0:01:19.9]} 38. Bg6 {[%clk 0:01:17.2]} 38... Bb4
{[%clk 0:01:11.2]} 39. Kd3 {[%clk 0:01:14.9]} 39... Be1 {[%clk 0:01:11.2]} 40.
Kc4 {[%clk 0:01:09.7]} 40... Bxh4 {[%clk 0:01:10.1]} 41. Kxc5 {[%clk 0:01:09.5]}
41... Be1 {[%clk 0:01:10.3]} 42. Kc6 {[%clk 0:01:02.2]} 42... Bc3 {[%clk
0:01:09.8]} 43. Kd7 {[%clk 0:01:01.6]} 43... Bd2 {[%clk 0:01:08.4]} 44. Ke7
{[%clk 0:01:00.6]} 44... Bc3 {[%clk 0:01:08.4]} 45. Kf7 {[%clk 0:01:00.4]} 45...
Bd2 {[%clk 0:01:08.5]} 46. Kg7 {[%clk 0:01:00.3]} 46... Bc3 {[%clk 0:01:08.5]}
47. Kxh6 {[%clk 0:01:00.1]} 47... Bd2 {[%clk 0:01:08.8]} 48. Bd3 {[%clk
0:00:59.2]} 48... Bc3 {[%clk 0:01:08.3]} 49. Kg6 {[%clk 0:00:59.4]} 49... Bd2
{[%clk 0:01:08.4]} 50. Kf7 {[%clk 0:00:56.5]} 50... Bc3 {[%clk 0:01:08.4]} 51.
Ke7 {[%clk 0:00:56.1]} 51... Bd2 {[%clk 0:01:08.5]} 52. Kd7 {[%clk 0:00:55.7]}
52... Bc3 {[%clk 0:01:08.8]} 53. Kc6 {[%clk 0:00:56]} 53... Bd2 {[%clk
0:01:09.1]} 54. Kc5 {[%clk 0:00:56.4]} 54... Bc3 {[%clk 0:01:08.1]} 55. Kc4
{[%clk 0:00:56.7]} 55... Be1 {[%clk 0:01:07.9]} 56. Kb5 {[%clk 0:00:56.8]} 56...
Bd2 {[%clk 0:01:07.8]} 57. Kc5 {[%clk 0:00:54]} 57... Be1 {[%clk 0:01:07.8]} 58.
c4 {[%clk 0:00:39.9]} 58... dxc3 {[%clk 0:01:06.6]} 59. Bc2 {[%clk 0:00:40.1]}
59... Bd2 {[%clk 0:00:56]} 60. Kc4 {[%clk 0:00:32.4]} 60... Be1 {[%clk
0:00:54.9]} 61. Kb5 {[%clk 0:00:22.8]} 61... Kd4 {[%clk 0:00:54.6]} 62. Kxa5
{[%clk 0:00:22.9]} 62... Ke3 {[%clk 0:00:54.8]} 63. b4 {[%clk 0:00:23.3]} 63...
Kxf3 {[%clk 0:00:47.1]} 64. b5 {[%clk 0:00:23.2]} 64... Ke3 {[%clk 0:00:45.9]}
65. b6 {[%clk 0:00:16.9]} 65... f3 {[%clk 0:00:45.6]} 66. b7 {[%clk 0:00:16.2]}
66... Bg3 {[%clk 0:00:45.7]} 67. Kb4 {[%clk 0:00:16.3]} 67... f2 {[%clk
0:00:45.5]} 68. a5 {[%clk 0:00:15.5]} 68... f1=Q {[%clk 0:00:45.3]} 69. a6
{[%clk 0:00:16.4]} 69... Qxa6 {[%clk 0:00:45.3]} 70. Kxc3 {[%clk 0:00:16.3]}
70... Qxb7 {[%clk 0:00:45.5]} 0-1

[Event "*** SCC Grand Prix: Titled Tuesday Blitz"]
[Site "Chess.com"]
[Date "2020.07.07"]
[Round "6"]
[White "IMRosen"]
[Black "Caterpiller35"]
[Result "0-1"]
[WhiteElo "2531"]
[BlackElo "2373"]
[TimeControl "180+1"]
[EndTime "11:07:13 PDT"]
[Termination "Caterpiller35 won by checkmate"]

1. d4 {[%clk 0:02:59.7]} 1... Nf6 {[%clk 0:02:59.9]} 2. Bf4 {[%clk 0:02:59.5]}
2... e6 {[%clk 0:02:56.3]} 3. e3 {[%clk 0:02:59.3]} 3... d5 {[%clk 0:02:56.7]}
4. Nd2 {[%clk 0:02:57.7]} 4... c5 {[%clk 0:02:57]} 5. Ngf3 {[%clk 0:02:51.7]}
5... Bd6 {[%clk 0:02:56.9]} 6. Bb5+ {[%clk 0:02:36.2]} 6... Kf8 {[%clk
0:02:51.6]} 7. Bg3 {[%clk 0:02:24.4]} 7... c4 {[%clk 0:02:43.2]} 8. c3 {[%clk
0:02:21.8]} 8... Bxg3 {[%clk 0:02:35.4]} 9. hxg3 {[%clk 0:02:21.8]} 9... Bd7
{[%clk 0:02:35.9]} 10. Ba4 {[%clk 0:02:08.4]} 10... Bxa4 {[%clk 0:02:33.4]} 11.
Qxa4 {[%clk 0:02:08.2]} 11... Qd7 {[%clk 0:02:33.9]} 12. Qc2 {[%clk 0:02:04.4]}
12... b5 {[%clk 0:02:29.9]} 13. e4 {[%clk 0:02:02.4]} 13... Nc6 {[%clk 0:02:29]}
14. e5 {[%clk 0:02:00.8]} 14... Ne4 {[%clk 0:02:17.7]} 15. Nxe4 {[%clk
0:02:00.9]} 15... dxe4 {[%clk 0:02:17.5]} 16. Qxe4 {[%clk 0:02:01.8]} 16... h6
{[%clk 0:02:17.3]} 17. g4 {[%clk 0:01:58.6]} 17... g6 {[%clk 0:02:08.7]} 18. Qf4
{[%clk 0:01:52.1]} 18... Kg7 {[%clk 0:01:58.5]} 19. Qf6+ {[%clk 0:01:48.6]}
19... Kg8 {[%clk 0:01:58.6]} 20. g5 {[%clk 0:01:35.3]} 20... h5 {[%clk 0:01:49]}
21. g4 {[%clk 0:01:34.6]} 21... Ne7 {[%clk 0:01:42.8]} 22. gxh5 {[%clk
0:01:11.2]} 22... Nd5 {[%clk 0:01:37.8]} 23. Qxh8+ {[%clk 0:00:40.2]} 23... Kxh8
{[%clk 0:01:36.8]} 24. hxg6+ {[%clk 0:00:39.8]} 24... Kg8 {[%clk 0:01:35.7]} 25.
Rh6 {[%clk 0:00:29.4]} 25... Nf4 {[%clk 0:01:29.5]} 26. gxf7+ {[%clk 0:00:28.5]}
26... Qxf7 {[%clk 0:01:28.2]} 27. Rf6 {[%clk 0:00:20.7]} 27... Nd3+ {[%clk
0:01:21.4]} 28. Ke2 {[%clk 0:00:21.2]} 28... Qh5 {[%clk 0:01:18]} 29. Rg1 {[%clk
0:00:18.7]} 29... Rf8 {[%clk 0:01:14.1]} 30. Ke3 {[%clk 0:00:18.7]} 30... Rxf6
{[%clk 0:00:55.1]} 31. gxf6+ {[%clk 0:00:18.9]} 31... Kf8 {[%clk 0:00:55.3]} 32.
Ng5 {[%clk 0:00:07.3]} 32... Qh6 {[%clk 0:00:21.3]} 33. f4 {[%clk 0:00:07.3]}
33... Qh2 {[%clk 0:00:17.1]} 34. Nxe6+ {[%clk 0:00:06.5]} 34... Ke8 {[%clk
0:00:16.5]} 35. Rg8+ {[%clk 0:00:05.1]} 35... Kd7 {[%clk 0:00:14.4]} 36. Nc5+
{[%clk 0:00:02.3]} 36... Kc7 {[%clk 0:00:13.6]} 37. Nxd3 {[%clk 0:00:02.7]}
37... cxd3 {[%clk 0:00:13.4]} 38. Kxd3 {[%clk 0:00:03.6]} 38... Qh7+ {[%clk
0:00:12.4]} 39. f5 {[%clk 0:00:02.3]} 39... Qxg8 {[%clk 0:00:12.5]} 40. Ke4
{[%clk 0:00:01.2]} 40... Qxa2 {[%clk 0:00:11.8]} 41. e6 {[%clk 0:00:01.5]} 41...
Kd8 {[%clk 0:00:11.3]} 42. d5 {[%clk 0:00:01.5]} 42... Ke8 {[%clk 0:00:10.3]}
43. d6 {[%clk 0:00:01.6]} 43... Qc4+ {[%clk 0:00:10.3]} 44. Ke5 {[%clk
0:00:01.9]} 44... Qc5+ {[%clk 0:00:10.6]} 45. Kf4 {[%clk 0:00:02.6]} 45... Qxd6+
{[%clk 0:00:10.9]} 46. Kg5 {[%clk 0:00:03.5]} 46... Kf8 {[%clk 0:00:11.2]} 47.
Kg6 {[%clk 0:00:03.1]} 47... Qg3+ {[%clk 0:00:11.4]} 48. Kh6 {[%clk 0:00:03.7]}
48... Qg4 {[%clk 0:00:11.6]} 49. c4 {[%clk 0:00:01.1]} 49... Qxf5 {[%clk
0:00:11.5]} 50. f7 {[%clk 0:00:02]} 50... Qxe6+ {[%clk 0:00:10.9]} 51. Kh7
{[%clk 0:00:02.3]} 51... Qxc4 {[%clk 0:00:11]} 52. Kh8 {[%clk 0:00:03.2]} 52...
Kxf7 {[%clk 0:00:11]} 53. b4 {[%clk 0:00:02.3]} 53... Qh4# {[%clk 0:00:11.9]}
0-1